fUST/lending_fUST_20250811
["ID","MTS","AMOUNT","RATE_DAILY","PERIOD"]
[378411342,1754848238399,-492.88135522,0.0002145,2]
[378411344,1754848238408,-500.0,0.0002145,2]
[378411346,1754848238418,-500.0,0.0002145,2]
[378411348,1754848238428,-500.0,0.0002145,2]
[378411350,1754848238437,-500.0,0.0002145,2]
[378411352,1754848238447,-300.0,0.0002145,2]
[378411354,1754848238457,-496.64794256,0.0002145,2]
[378411356,1754848238467,-7381.08692508,0.00021452,2]
[378411359,1754848238480,-5601.41289328,0.00021452,2]
[378411361,1754848238489,-500.0,0.00021479,2]
[378411363,1754848238499,-500.0,0.000215,2]
[378411365,1754848238508,-587.93164712,0.00021553,2]
[378411367,1754848238518,-460.0,0.00021553,2]
[378411369,1754848238527,-460.0,0.00021553,2]
[378411371,1754848238537,-674.22,0.00021596,2]
[378411372,1754848238546,-843.59,0.00021596,2]
[378411375,1754848238556,-460.0,0.00021596,2]
[378411377,1754848238566,-460.0,0.00021597,2]
[378411379,1754848238575,-292.76954589,0.00021606,2]
[378411381,1754848238584,-460.0,0.00021606,2]
[378411383,1754848238594,-460.0,0.00021606,2]
[378411385,1754848238603,-940.65,0.00021606,2]
[378411387,1754848238612,-460.0,0.00021606,2]
[378411389,1754848238622,-500.0,0.00021625,2]
[378411391,1754848238632,-500.0,0.00021625,2]
[378411393,1754848238641,-1974.24394781,0.00021667,2]
[378411395,1754848238651,-150.0,0.00021737,2]
[378411397,1754848238660,-460.0,0.00021827,2]
[378411399,1754848238669,-460.0,0.00021827,2]
[378411401,1754848238679,-674.22,0.0002187,2]
[378411403,1754848238689,-843.59,0.0002187,2]
[378411405,1754848238698,-460.0,0.0002187,2]
[378411407,1754848238707,-460.0,0.00021871,2]
[378411409,1754848238716,-460.0,0.0002188,2]
[378411411,1754848238726,-460.0,0.0002188,2]
[378411413,1754848238735,-940.65,0.0002188,2]
[378411415,1754848238744,-460.0,0.0002188,2]
[378411417,1754848238758,-500.0,0.000219,2]
[378411419,1754848238767,-500.0,0.00021917,2]
[378411421,1754848238778,-500.0,0.00021917,2]
[378411423,1754848238788,-500.0,0.00021917,2]
[378411425,1754848238798,-500.0,0.00021917,2]
[378411427,1754848238807,-500.0,0.00021917,2]
[378411429,1754848238816,-1327.5605296,0.00021918,7]
[378411431,1754848238826,-500.0,0.00021925,2]
[378411433,1754848238836,-254.49316604,0.00021925,2]
[378411435,1754848238846,-500.0,0.00021925,2]
[378411437,1754848238856,-246.76763945,0.00021925,2]
[378411439,1754848238865,-561.06729624,0.00021925,2]
[378411441,1754848238875,-500.0,0.00021931,2]
[378411443,1754848238885,-500.0,0.00021931,2]
[378411445,1754848238895,-500.0,0.00021931,2]
[378411447,1754848238904,-185.0,0.00022,2]
[378411449,1754848238914,-525.0,0.00022,2]
[378411451,1754848238924,-2518.59,0.00022,2]
[378411453,1754848238934,-500.33812626,0.00022048,2]
[378411456,1754848238948,-460.0,0.00022101,2]
[378411458,1754848238958,-460.0,0.00022101,2]
[378411460,1754848238967,-500.0,0.00022144,2]
[378411462,1754848238977,-674.22,0.00022144,2]
[378411464,1754848238987,-843.59,0.00022144,2]
[378411466,1754848238996,-460.0,0.00022144,2]
[378411468,1754848239006,-460.0,0.00022145,2]
[378411470,1754848239016,-460.0,0.00022153,2]
[378411472,1754848239025,-460.0,0.00022153,2]
[378411474,1754848239035,-940.65,0.00022153,2]
[378411476,1754848239044,-460.0,0.00022153,2]
[378411478,1754848239054,-358.71937737,0.00022173,2]
[378411480,1754848239063,-525.0,0.00022192,7]
[378411482,1754848239073,-250.86603332,0.000222,2]
[378411484,1754848239083,-460.0,0.00022375,2]
[378411486,1754848239092,-460.0,0.00022375,2]
[378411488,1754848239102,-500.0,0.00022418,2]
[378411490,1754848239112,-674.22,0.00022418,2]
[378411492,1754848239121,-843.59,0.00022418,2]
[378411494,1754848239131,-460.0,0.00022418,2]
[378411496,1754848239141,-460.0,0.00022419,2]
[378411498,1754848239150,-460.0,0.00022427,2]
[378411500,1754848239160,-460.0,0.00022427,2]
[378411502,1754848239170,-940.65,0.00022427,2]
[378411504,1754848239179,-460.0,0.00022427,2]
[378411506,1754848239190,-607.01394042,0.00022448,2]
[378411508,1754848239200,-1000.0,0.00022473,2]
[378411510,1754848239210,-510.03789611,0.00022479,2]
[378411513,1754848239220,-500.0,0.00022479,2]
[378411514,1754848239230,-6888.15,0.0002258,2]
[378411516,1754848239240,-460.0,0.00022649,2]
[378411518,1754848239249,-460.0,0.00022649,2]
[378411521,1754848239258,-500.0,0.00022692,2]
[378411523,1754848239269,-674.22,0.00022692,2]
[378411524,1754848239278,-843.59,0.00022692,2]
[378411526,1754848239287,-460.0,0.00022692,2]
[378411529,1754848239297,-460.0,0.00022693,2]
[378411531,1754848239306,-151.0,0.00022701,2]
[378411533,1754848239315,-151.0,0.00022701,2]
[378411535,1754848239325,-151.0,0.00022701,2]
[378411537,1754848239334,-151.0,0.00022701,2]
[378411539,1754848239343,-151.0,0.00022701,2]
[378411541,1754848239353,-151.0,0.00022701,2]
[378411543,1754848239363,-151.0,0.00022701,2]
[378411545,1754848239372,-151.0,0.00022701,2]
[378411546,1754848239382,-151.0,0.00022701,2]
[378411549,1754848239391,-151.0,0.00022701,2]
[378411551,1754848239402,-151.0,0.00022701,2]
[378411553,1754848239412,-151.0,0.00022701,2]
[378411555,1754848239422,-151.0,0.00022701,2]
[378411557,1754848239431,-151.0,0.00022701,2]
[378411559,1754848239441,-151.0,0.00022701,2]
[378411561,1754848239451,-151.0,0.00022701,2]
[378411563,1754848239460,-151.0,0.00022701,2]
[378411565,1754848239470,-460.0,0.00022701,2]
[378411567,1754848239480,-460.0,0.00022701,2]
[378411569,1754848239489,-940.65,0.00022701,2]
[378411571,1754848239498,-460.0,0.00022701,2]
[378411573,1754848239508,-5888.0,0.00022725,2]
[378411575,1754848239517,-160.0,0.0002273,2]
[378411577,1754848239526,-1258.0,0.00022782,2]
[378411579,1754848239535,-460.0,0.00022923,2]
[378411581,1754848239545,-460.0,0.00022923,2]
[378411583,1754848239555,-705.36,0.00022965,3]
[378411585,1754848239564,-500.0,0.00022966,2]
[378411587,1754848239573,-674.22,0.00022966,2]
[378411589,1754848239582,-843.59,0.00022966,2]
[378411591,1754848239592,-460.0,0.00022966,2]
[378411593,1754848239601,-460.0,0.00022967,2]
[378411595,1754848239610,-460.0,0.00022975,2]
[378411597,1754848239619,-460.0,0.00022975,2]
[378411599,1754848239628,-940.65,0.00022975,2]
[378411601,1754848239638,-460.0,0.00022975,2]
[378411604,1754848239648,-160.0,0.00023,2]
[378411607,1754848239657,-5000.0,0.00023009,2]
[378411609,1754848239667,-185.0,0.00023014,7]
[378411611,1754848239677,-525.0,0.00023014,7]
[378411613,1754848239686,-1500.0,0.00023021,2]
[378411615,1754848239695,-1068.9,0.00023109,2]
[378411617,1754848239705,-2518.59,0.00023181,2]
[378411620,1754848239714,-184.37172481,0.00023183,2]
[378411623,1754848239724,-228.37244943,0.00023197,2]
[378411625,1754848239733,-460.0,0.00023197,2]
[378411627,1754848239743,-500.0,0.0002324,2]
[378411629,1754848239753,-674.22,0.0002324,2]
[378411631,1754848239764,-843.59,0.0002324,2]
[378411633,1754848239774,-460.0,0.0002324,2]
[378411635,1754848239783,-460.0,0.00023241,2]
[378411637,1754848239794,-256.77,0.00023245,3]
[378411639,1754848239804,-460.0,0.00023249,2]
[378411641,1754848239813,-460.0,0.00023249,2]
[378411643,1754848239823,-940.65,0.00023249,2]
[378411645,1754848239833,-460.0,0.00023249,2]
[378411647,1754848239843,-260.0,0.00023278,2]
[378411649,1754848239853,-1258.0,0.00023469,2]
[378411651,1754848239862,-460.0,0.00023471,2]
[378411653,1754848239871,-166.065596,0.000235,2]
[378411655,1754848239881,-593.16402743,0.00023514,2]
[378411657,1754848239890,-674.22,0.00023514,2]
[378411659,1754848239899,-843.59,0.00023514,2]
[378411661,1754848239908,-460.0,0.00023514,2]
[378411663,1754848239918,-245.02605569,0.00023515,2]
[378411665,1754848239927,-460.0,0.00023523,2]
[378411667,1754848239936,-460.0,0.00023523,2]
[378411669,1754848239946,-940.65,0.00023523,2]
[378411671,1754848239955,-460.0,0.00023523,2]
[378411673,1754848239964,-2335.82288224,0.00023545,2]
[378411675,1754848239974,-2335.82288224,0.00023609,2]
[378411677,1754848239983,-352.68,0.00023644,3]
[378411679,1754848239992,-500.0,0.00023654,2]
[378411681,1754848240002,-263.34175626,0.00023654,2]
[378411683,1754848240011,-500.0,0.00023654,2]
[378411685,1754848240020,-500.0,0.00023654,2]
[378411687,1754848240029,-500.0,0.00023654,2]
[378411689,1754848240039,-500.0,0.00023654,2]
[378411691,1754848240048,-537.2281634,0.00023654,2]
[378411693,1754848240058,-500.0,0.00023654,2]
[378411695,1754848240067,-500.0,0.00023654,2]
[378411697,1754848240078,-500.0,0.00023654,2]
[378411699,1754848240087,-500.0,0.00023654,2]
[378411701,1754848240097,-500.0,0.00023654,2]
[378411703,1754848240107,-500.0,0.00023654,2]
[378411705,1754848240117,-500.0,0.00023654,2]
[378411707,1754848240126,-500.0,0.00023654,2]
[378411709,1754848240135,-500.0,0.00023654,2]
[378411711,1754848240145,-500.0,0.00023654,2]
[378411713,1754848240155,-626.05971439,0.00023654,2]
[378411715,1754848240164,-500.0,0.00023654,2]
[378411717,1754848240173,-500.0,0.00023654,2]
[378411719,1754848240183,-500.0,0.00023654,2]
[378411721,1754848240192,-500.0,0.00023654,2]
[378411723,1754848240202,-57830.73122571,0.00023655,2]
[378411872,1754848243229,-1316.16263187,0.00021555,2]
[378411873,1754848243240,-344.75,0.00022,2]
[378411874,1754848243249,-1943.41618044,0.00023655,2]
[378414633,1754848293211,1444.89629448,0.0003013,120]
[378414636,1754848639016,177.107822,0.00013699,2]
[378414639,1754848716533,6962.42554038,0.00019945,2]
[378414640,1754848716554,10000.0,0.00019945,2]
[378414641,1754848716577,7937.57445962,0.00019945,2]
[378414642,1754848725056,2062.42554038,0.00019956,2]
[378414643,1754848725078,2937.57445962,0.00019956,2]
[378414644,1754848740279,5000.0,0.00019956,2]
[378414645,1754848747770,5000.0,0.00027905,30]
[378414646,1754848757022,2062.42554038,0.00019956,2]
[378414647,1754848757046,2937.57445962,0.00019956,2]
[378414648,1754848772492,5000.0,0.00019956,2]
[378414654,1754848843074,205.09089869,0.000199,2]
[378414665,1754849018623,205.09089863,0.000199,2]
[378414667,1754849103108,1267.7835633,0.00019556,2]
[378414669,1754849199161,230.73344972,0.000199,2]
[378414671,1754849228129,-562.39,0.00019962,2]
[378414672,1754849228150,-160.0,0.0002,3]
[378414673,1754849228170,-177.107822,0.00020187,2]
[378414674,1754849228190,-460.0,0.00020235,2]
[378414675,1754849228213,-562.39,0.00020236,2]
[378414676,1754849228233,-300.0,0.00020377,2]
[378414677,1754849228254,-532.0,0.00020377,2]
[378414678,1754849228274,-300.0,0.00020377,2]
[378414679,1754849228295,-300.0,0.00020378,2]
[378414680,1754849228315,-252.0,0.00020378,2]
[378414681,1754849228335,-300.0,0.00020378,2]
[378414682,1754849228355,-1200.0,0.00020378,2]
[378414683,1754849228376,-300.0,0.00020378,2]
[378414684,1754849228398,-2095.39634615,0.00020378,2]
[378414685,1754849304767,153.72673004,0.0001936,2]
[378414686,1754849304790,308.58073073,0.0001936,2]
[378414687,1754849306807,1849.22984309,0.0001936,2]
[378414688,1754849308749,4156.60637982,0.0001936,2]
[378414689,1754849313494,1000.0,0.0001943,2]
[378414692,1754849326552,624.12361656,0.0001936,2]
[378414693,1754849328805,2061.4594298,0.0001936,2]
[378414694,1754849328827,432.53854197,0.0001936,2]
[378414697,1754849369226,206.80260426,0.000199,2]
[378414700,1754849391048,1737.9450716,0.00019372,2]
[378414704,1754849421378,201.44419,0.00019372,2]
[378414761,1754849432551,-643.17025537,0.00019962,2]
[378414767,1754849432602,-12.94974463,0.00019962,2]
[378414769,1754849432611,-460.0,0.00019962,2]
[378414771,1754849432621,-160.0,0.0002,3]
[378414773,1754849432630,-98.88,0.00020236,2]
[378415319,1754849438456,-557.24,0.00020236,2]
[378415321,1754849438465,-460.0,0.00020236,2]
[378415323,1754849438474,-219.50777919,0.00020356,2]
[378415325,1754849438483,-300.0,0.00020376,2]
[378415327,1754849438493,-223.0,0.00020376,2]
[378415329,1754849438503,-300.0,0.00020376,2]
[378415331,1754849438512,-597.48257819,0.00020377,2]
[378415333,1754849438522,-2387.54038246,0.00020377,2]
[378415335,1754849438531,-47904.60365385,0.00020377,2]
[378415337,1754849438541,-190.82991,0.00020456,2]
[378415339,1754849438550,-490.79340659,0.00020506,2]
[378415341,1754849438559,-500.0,0.00020506,2]
[378415343,1754849438568,-500.0,0.00020506,2]
[378415345,1754849438578,-500.0,0.00020506,2]
[378415347,1754849438587,-500.0,0.00020506,2]
[378415349,1754849438597,-500.0,0.00020506,2]
[378415351,1754849438607,-500.0,0.00020506,2]
[378415353,1754849438616,-460.0,0.00020508,2]
[378415355,1754849438626,-460.0,0.00020508,2]
[378415357,1754849438635,-666.29,0.00020508,2]
[378415359,1754849438644,-460.0,0.00020508,2]
[378415361,1754849438654,-460.0,0.00020509,2]
[378415363,1754849438662,-656.12,0.0002051,2]
[378415365,1754849438671,-460.0,0.0002051,2]
[378415367,1754849438681,-250.0,0.00020688,2]
[378415369,1754849438690,-460.0,0.00020782,2]
[378415371,1754849438699,-460.0,0.00020782,2]
[378415373,1754849438708,-666.29,0.00020782,2]
[378415375,1754849438718,-460.0,0.00020782,2]
[378415377,1754849438727,-460.0,0.00020783,2]
[378415379,1754849438736,-656.12,0.00020784,2]
[378415381,1754849438745,-460.0,0.00020784,2]
[378415383,1754849438755,-460.0,0.00021056,2]
[378415385,1754849438764,-460.0,0.00021056,2]
[378415387,1754849438773,-666.29,0.00021056,2]
[378415389,1754849438783,-460.0,0.00021056,2]
[378415391,1754849438792,-460.0,0.00021057,2]
[378415393,1754849438801,-656.12,0.00021058,2]
[378415395,1754849438811,-460.0,0.00021058,2]
[378415397,1754849438820,-460.0,0.0002128,2]
[378415399,1754849438830,-460.0,0.0002133,2]
[378415401,1754849438839,-460.0,0.0002133,2]
[378415403,1754849438848,-666.29,0.0002133,2]
[378415405,1754849438858,-460.0,0.0002133,2]
[378415407,1754849438867,-460.0,0.00021331,2]
[378415409,1754849438876,-656.12,0.00021332,2]
[378415411,1754849438886,-460.0,0.00021332,2]
[378415413,1754849438895,-500.0,0.00021332,2]
[378415415,1754849438904,-1299.63478214,0.00021344,2]
[378415429,1754849439022,200.0,0.0002997,120]
[378415719,1754849442058,200.0,0.0002997,120]
[378415838,1754849443389,-500.0,0.00020506,2]
[378415840,1754849443398,-500.0,0.00020506,2]
[378415843,1754849443407,-500.0,0.00020506,2]
[378415846,1754849443416,-500.0,0.00020506,2]
[378415849,1754849443426,-500.0,0.00020506,2]
[378415853,1754849443435,-478.2594084,0.00020506,2]
[378415855,1754849443445,-500.0,0.00020506,2]
[378415857,1754849443455,-500.0,0.00020506,2]
[378415859,1754849443464,-500.0,0.00020506,2]
[378415861,1754849443473,-574.6062765,0.00020506,2]
[378415863,1754849443482,-195.05695786,0.00020506,2]
[378415864,1754849443491,-500.0,0.00020506,2]
[378415866,1754849443501,-5945.79415134,0.00021344,2]
[378416174,1754849446629,-190.82991,0.00020789,2]
[378416176,1754849446639,-5423.14766321,0.00021344,2]
[378416178,1754849446648,-460.0,0.00021345,2]
[378416180,1754849446657,-460.0,0.00021345,2]
[378416200,1754849446813,-200.0,0.00021395,15]
[378416202,1754849446822,-300.0,0.00021395,15]
[378416204,1754849446831,-158.97571723,0.0002145,2]
[378416208,1754849446844,-460.0,0.00021553,2]
[378416210,1754849446853,-460.0,0.00021604,2]
[378416212,1754849446862,-460.0,0.00021604,2]
[378416214,1754849446872,-666.29,0.00021604,2]
[378416216,1754849446882,-460.0,0.00021604,2]
[378416218,1754849446892,-460.0,0.00021605,2]
[378416220,1754849446901,-656.12,0.00021606,2]
[378416222,1754849446911,-460.0,0.00021606,2]
[378416224,1754849446921,-151.0,0.00021619,2]
[378416226,1754849446931,-151.0,0.00021619,2]
[378416228,1754849446941,-151.0,0.00021619,2]
[378416230,1754849446950,-151.0,0.00021619,2]
[378416232,1754849446959,-460.0,0.00021619,2]
[378416234,1754849446969,-460.0,0.00021619,2]
[378416236,1754849446978,-500.0,0.00021772,2]
[378416238,1754849446987,-500.0,0.00021772,2]
[378416240,1754849446996,-248.12626456,0.00021772,2]
[378416241,1754849447007,-226.89101159,0.00021772,2]
[378416244,1754849447017,-500.0,0.00021772,2]
[378416246,1754849447026,-500.0,0.00021779,2]
[378416247,1754849447036,-500.0,0.00021779,2]
[378416249,1754849447045,-500.0,0.00021813,2]
[378416251,1754849447055,-500.79878194,0.00021813,2]
[378416253,1754849447066,-460.0,0.00021827,2]
[378416256,1754849447077,-500.0,0.00021833,2]
[378416258,1754849447087,-212.81782953,0.0002185,2]
[378416260,1754849447097,-500.0,0.0002185,2]
[378416262,1754849447111,-500.0,0.0002185,2]
[378416264,1754849447121,-460.0,0.00021878,2]
[378416266,1754849447130,-460.0,0.00021878,2]
[378416268,1754849447139,-666.29,0.00021878,2]
[378416270,1754849447150,-460.0,0.00021878,2]
[378416272,1754849447159,-460.0,0.00021879,2]
[378416274,1754849447168,-656.12,0.0002188,2]
[378416276,1754849447179,-487.66147664,0.0002188,2]
[378416278,1754849447191,-460.0,0.00021893,2]
[378416280,1754849447200,-460.0,0.00021893,2]
[378416282,1754849447209,-215.44987349,0.00021912,2]
[378416283,1754849447219,-843.0869304,0.00021912,2]
[378416285,1754849447228,-160.0,0.00021912,2]
[378416288,1754849447243,-160.0,0.00021912,2]
[378416290,1754849447252,-231.96268195,0.00021912,2]
[378416292,1754849447261,-461.62346162,0.00021912,2]
[378416294,1754849447270,-160.0,0.00021912,2]
[378416296,1754849447279,-216.64838636,0.00021912,2]
[378416298,1754849447288,-500.0,0.00021917,2]
[378416300,1754849447298,-500.0,0.00021917,2]
[378416302,1754849447308,-500.0,0.00021917,2]
[378416304,1754849447318,-500.0,0.00021917,2]
[378416306,1754849447327,-500.0,0.00021917,2]
[378416308,1754849447337,-500.0,0.00021917,2]
[378416310,1754849447346,-500.0,0.00021917,2]
[378416312,1754849447355,-7108.11,0.00021917,2]
[378416314,1754849447365,-200.0,0.00021918,2]
[378416316,1754849447374,-219.50777915,0.00021927,2]
[378416318,1754849447384,-206.80260426,0.00021935,2]
[378416320,1754849447393,-185.0,0.00022,2]
[378416322,1754849447403,-229.83,0.00022,2]
[378416324,1754849447412,-525.0,0.00022,2]
[378416326,1754849447422,-2518.59,0.00022,2]
[378416328,1754849447432,-500.0,0.00022006,2]
[378416330,1754849447441,-500.0,0.00022006,2]
[378416332,1754849447451,-500.0,0.00022006,2]
[378416334,1754849447460,-202.98714517,0.00022044,3]
[378416336,1754849447470,-160.0,0.00022044,3]
[378416338,1754849447480,-237.72006043,0.00022044,3]
[378416340,1754849447491,-153.48302005,0.00022044,3]
[378416342,1754849447500,-152.0,0.00022044,3]
[378416344,1754849447510,-152.0,0.00022044,3]
[378416346,1754849447519,-152.0,0.00022044,3]
[378416348,1754849447529,-460.0,0.00022101,2]
[378416350,1754849447538,-460.0,0.00022152,2]
[378416352,1754849447548,-460.0,0.00022152,2]
[378416354,1754849447557,-666.29,0.00022152,2]
[378416356,1754849447566,-460.0,0.00022152,2]
[378416358,1754849447574,-500.0,0.00022153,2]
[378416360,1754849447583,-460.0,0.00022153,2]
[378416362,1754849447593,-656.12,0.00022153,2]
[378416364,1754849447602,-460.0,0.00022167,2]
[378416366,1754849447612,-460.0,0.00022167,2]
[378416368,1754849447621,-525.0,0.00022192,7]
[378416370,1754849447630,-160.0,0.000222,2]
[378416372,1754849447639,-153.0,0.00022241,2]
[378416374,1754849447649,-153.0,0.00022241,2]
[378416376,1754849447658,-584.08680848,0.0002232,2]
[378416378,1754849447667,-501.06457544,0.0002232,2]
[378416380,1754849447677,-422.97070679,0.0002232,2]
[378416382,1754849447686,-500.0,0.00022327,2]
[378416384,1754849447695,-5888.0,0.00022345,2]
[378416386,1754849447705,-313.66190617,0.0002236,2]
[378416388,1754849447715,-460.0,0.00022375,2]
[378416390,1754849447725,-500.0,0.00022398,2]
[378416392,1754849447735,-1000.0,0.00022398,2]
[378416394,1754849447744,-213.24482693,0.00022426,2]
[378416396,1754849447753,-460.0,0.00022426,2]
[378416398,1754849447763,-666.29,0.00022426,2]
[378416400,1754849447772,-460.0,0.00022426,2]
[378416402,1754849447781,-593.16402743,0.00022427,2]
[378416404,1754849447790,-460.0,0.00022427,2]
[378416406,1754849447800,-656.12,0.00022427,2]
[378416408,1754849447809,-460.0,0.00022441,2]
[378416410,1754849447819,-460.0,0.00022441,2]
[378416412,1754849447828,-705.36,0.00022539,3]
[378416414,1754849447837,-1759.0,0.00022549,3]
[378416416,1754849447846,-172.16558578,0.00022549,3]
[378416418,1754849447855,-1759.0,0.00022549,3]
[378416420,1754849447864,-1759.0,0.00022549,3]
[378416422,1754849447873,-1759.0,0.00022549,3]
[378416424,1754849447883,-1759.0,0.00022549,3]
[378416426,1754849447892,-160.0,0.00022549,3]
[378416428,1754849447902,-1222.33469865,0.00022549,3]
[378416430,1754849447911,-160.0,0.00022549,3]
[378416432,1754849447920,-1759.0,0.00022549,3]
[378416434,1754849447930,-170.1117116,0.00022549,3]
[378416436,1754849447940,-1759.0,0.00022549,3]
[378416438,1754849447949,-160.0,0.00022549,3]
[378416440,1754849447958,-1759.0,0.00022549,3]
[378416442,1754849447967,-160.0,0.00022549,3]
[378416444,1754849447976,-160.0,0.00022549,3]
[378416446,1754849447985,-1759.0,0.00022549,3]
[378416448,1754849447994,-160.0,0.00022549,3]
[378416450,1754849448003,-1759.0,0.00022549,3]
[378416452,1754849448013,-1759.0,0.00022549,3]
[378416454,1754849448023,-160.0,0.00022549,3]
[378416456,1754849448032,-329.06662627,0.00022549,3]
[378416458,1754849448041,-325.0,0.00022549,3]
[378416460,1754849448051,-215.44987349,0.00022549,3]
[378416461,1754849448060,-160.0,0.00022549,3]
[378416464,1754849448070,-461.62346162,0.00022549,3]
[378416465,1754849448080,-547.10620068,0.00022554,2]
[378416467,1754849448089,-151.0,0.00022594,2]
[378416469,1754849448099,-151.0,0.00022594,2]
[378416472,1754849448114,-151.0,0.00022594,2]
[378416473,1754849448123,-151.0,0.00022594,2]
[378416475,1754849448133,-151.0,0.00022594,2]
[378416477,1754849448142,-151.0,0.00022594,2]
[378416480,1754849448153,-151.0,0.00022594,2]
[378416482,1754849448162,-151.0,0.00022594,2]
[378416484,1754849448172,-151.0,0.00022594,2]
[378416486,1754849448182,-151.0,0.00022594,2]
[378416487,1754849448191,-151.0,0.00022594,2]
[378416489,1754849448200,-151.0,0.00022594,2]
[378416492,1754849448216,-151.0,0.00022594,2]
[378416494,1754849448229,-151.0,0.00022594,2]
[378416496,1754849448239,-151.0,0.00022594,2]
[378416499,1754849448251,-151.0,0.00022594,2]
[378416501,1754849448260,-151.0,0.00022594,2]
[378416503,1754849448270,-2488.07958279,0.00022601,2]
[378416505,1754849448280,-400.0,0.00022603,2]
[378416507,1754849448290,-460.0,0.00022649,2]
[378416509,1754849448300,-460.0,0.000227,2]
[378416511,1754849448310,-666.29,0.000227,2]
[378416513,1754849448319,-460.0,0.000227,2]
[378416515,1754849448330,-460.0,0.00022701,2]
[378416517,1754849448340,-656.12,0.00022701,2]
[378416519,1754849448350,-228.37244943,0.00022715,2]
[378416521,1754849448360,-460.0,0.00022715,2]
[378416523,1754849448369,-260.0,0.00022748,2]
[378416525,1754849448379,-5888.0,0.00022749,2]
[378416527,1754849448389,-2488.07958275,0.00022901,2]
[378416529,1754849448399,-245.02605569,0.00022923,2]
[378416531,1754849448409,-544.92643269,0.00022946,2]
[378416533,1754849448418,-1612.0,0.00022968,2]
[378416535,1754849448428,-460.0,0.00022974,2]
[378416537,1754849448438,-666.29,0.00022974,2]
[378416539,1754849448448,-460.0,0.00022974,2]
[378416541,1754849448458,-460.0,0.00022975,2]
[378416543,1754849448467,-656.12,0.00022975,2]
[378416545,1754849448477,-151.0,0.00022989,2]
[378416547,1754849448487,-460.0,0.00022989,2]
[378416549,1754849448497,-209.62244888,0.00023,2]
[378416551,1754849448507,-843.0869304,0.00023,3]
[378416553,1754849448516,-160.0,0.00023,3]
[378416555,1754849448526,-231.96268195,0.00023,3]
[378416557,1754849448536,-160.0,0.00023,3]
[378416559,1754849448545,-216.64838636,0.00023,3]
[378416561,1754849448554,-160.0,0.00023,2]
[378416563,1754849448564,-5000.0,0.00023009,2]
[378416565,1754849448574,-525.0,0.00023014,7]
[378416567,1754849448583,-1612.0,0.00023059,2]
[378416569,1754849448593,-184.37172481,0.00023085,2]
[378416571,1754849448602,-151.0,0.000231,5]
[378416573,1754849448612,-180.94114085,0.00023123,9]
[378416575,1754849448622,-500.0,0.00023179,2]
[378416577,1754849448632,-403.18969681,0.00023179,2]
[378416579,1754849448641,-500.0,0.00023179,2]
[378416581,1754849448650,-500.0,0.00023179,2]
[378416583,1754849448660,-500.0,0.00023179,2]
[378416585,1754849448670,-500.0,0.00023179,2]
[378416587,1754849448679,-500.0,0.00023179,2]
[378416589,1754849448689,-500.0,0.00023179,2]
[378416591,1754849448698,-500.0,0.00023179,2]